Cogmind - Beta 13 @@@ ROGUE MODE // 2024.04.28 @ 01:12:30 Player: rel Result: Destroyed by G-50 Soldier with Heavy Laser Performance ------------- Evolutions (3) 1500 Regions Visited (10) 2000 Robots Destroyed (103) 515 Value Destroyed (4533) 4533 Prototype IDs (5) 100 Alien Tech Used (0) 0 Bonus (1148) 1148 TOTAL SCORE: 9796 Bonus ------- High Alert Combat Kills 1002 Follower Combat Kills 1028 Entered Garrisons 200 Used RIF Installer 500 Aligned with FarCom 300 Friendly Fire -1882 Cogmind --------- Core Integrity 0/700 Matter 46/300 Energy 190/190 System Corruption 19% Temperature Cool (36) Movement Core (600) Ox11 Location -7/Factory Parts ------- > --- POWER (1) -------- Light Quantum Reactor > --- PROPULSION (4) --- (None) > --- UTILITY (4) ------ Large Storage Unit Relay Coupler [Grunt] (29) > --- WEAPON (4) ------- (None) > --- INVENTORY (15) --- Advanced Treads Advanced Weapon Cycler Shock Absorption System Relay Coupler [Swarmer] (38) Relay Coupler [Sentry] (21) Trap Reconfigurator Improved Datajack Peak State ------------ > --- POWER ------------ Reinforced Fission Core > --- PROPULSION ------- Heavy Treads Heavy Treads > --- UTILITY ---------- Large Storage Unit Advanced Weapon Cycler Backup Plating VII Trap Reconfigurator > --- WEAPON ----------- Heavy Mass Driver Heavy Mass Driver > --- INVENTORY -------- Antimatter Reactor Light Quantum Reactor Advanced Treads Advanced Heat Sink Weapon Mount Shock Absorption System Relay Coupler [Swarmer] Relay Coupler [Grunt] Relay Coupler [Sentry] KE Penetrator Heavy Mass Driver Improved Datajack Remote Datajack Katana [Rating: 86] Favorites ----------- Power Light Ion Engine Engine Light Ion Engine Power Core Reinforced Fission Core Reactor Antimatter Reactor Propulsion Improved Treads Treads Improved Treads Leg Aluminum Leg Wheel Wheel Utility Large Storage Unit Device Trap Reconfigurator Storage Large Storage Unit Processor Core Analyzer Hackware Relay Coupler [Grunt] Protection Backup Plating VII Weapon Missile Launcher Energy Gun Shock Rifle Energy Cannon EM Pulse Cannon Ballistic Gun Shotgun Ballistic Cannon Heavy Mass Driver Launcher Missile Launcher Special Weapon Mining Laser Slashing Weapon Katana Build | -11 -10 -10 -10 -9 -8 -7 -7 -7 -7 -7 ------- Run | Yrd Mat Min Exi Min Mat Fac Was Fac Gar Fac Slots Evolved 6 | . . . . . 4 2 . . . . Power . | . . . . . . . . . . . Propulsion 2 | . . . . . 2 . . . . . Utility 2 | . . . . . 1 1 . . . . Weapon 2 | . . . . . 1 1 . . . . Parts Attached 97 | 6 11 1 5 . 14 5 5 . 34 16 Power 13 | 1 . . . . 2 . . . 8 2 Engine 3 | 1 . . . . 1 . . . 1 . Core 5 | . . . . . 1 . . . 4 . Reactor 5 | . . . . . . . . . 3 2 Propulsion 14 | 4 2 . 1 . 3 . 2 . 2 . Treads 9 | . 2 . 1 . 3 . 2 . 1 . Leg 3 | 2 . . . . . . . . 1 . Wheel 2 | 2 . . . . . . . . . . Hover . | . . . . . . . . . . . Flight . | . . . . . . . . . . . Utility 30 | 1 2 . 4 . 2 4 1 . 11 5 Device 22 | . 1 . 3 . 1 2 1 . 11 3 Storage 4 | 1 1 . 1 . 1 . . . . . Processor 2 | . . . . . . 2 . . . . Hackware 1 | . . . . . . . . . . 1 Protection 1 | . . . . . . . . . . 1 Artifact . | . . . . . . . . . . . Weapon 40 | . 7 1 . . 7 1 2 . 13 9 Energy Gun 5 | . 1 . . . 1 . . . 3 . Energy Cannon 4 | . . . . . 1 . . . 3 . Ballistic Gun 9 | . 3 . . . 3 . . . 1 2 Ballistic Cannon 8 | . . . . . 1 1 . . 2 4 Launcher 7 | . 2 1 . . . . 2 . 2 . Special Weapon 2 | . 1 . . . . . . . . 1 Impact Weapon . | . . . . . . . . . . . Slashing Weapon 5 | . . . . . 1 . . . 2 2 Piercing Weapon . | . . . . . . . . . . . Special Melee Weapon . | . . . . . . . . . . . Unidentified Prototypes 3 | . . . 3 . . . . . . . Parts Lost 18 | . 1 . . . 2 . . . 4 11 Power 2 | . . . . . 1 . . . . 1 Propulsion 3 | . . . . . 1 . . . . 2 Utility 4 | . . . . . . . . . 1 3 Weapon 9 | . 1 . . . . . . . 3 5 Highest Loss Streak 11 | . 1 . . . 2 . . . 2 11 To Critical Strikes 1 | . . . . . . . . . . 1 Average Slot Usage (%) 84 | . 87 94 90 100 89 88 79 76 80 68 Engine 6 | . 14 14 14 14 4 . . . 2 . Core 3 | . . . . . 3 7 7 7 4 6 Treads 21 | . 20 22 25 28 34 30 18 15 15 14 Device 13 | . 8 14 7 14 8 5 7 7 18 19 Storage 12 | . 14 14 14 14 18 15 15 15 7 7 Processor 1 | . . . . . . 5 7 7 3 . Energy Gun 2 | . . . . . . . . . 10 . Energy Cannon 2 | . . . . . 1 7 . . 5 . Ballistic Gun 5 | . 14 14 14 14 1 7 . . . . Ballistic Cannon 4 | . . . . . 7 5 7 7 2 13 Launcher 6 | . 10 14 14 14 7 . 14 15 1 . Slashing Weapon 1 | . . . . . 1 1 . . 4 . Naked Turns . | . . . . . . . . . . . Heaviest Build 89 | 8 31 34 36 33 45 48 54 51 87 89 Greatest Support 140 | 26 46 46 45 45 91 88 140 140 140 140 Greatest Overweight (x) 15 | . 4 1 1 . . . . . . 15 Average Overweight (x) . | . . . . . . . . . . . Largest Inventory Capacity 15 | 8 15 15 15 15 15 15 15 15 15 15 Average Capacity 14 | 6 10 15 15 15 15 15 15 15 15 15 Most Carried 15 | 5 8 12 13 13 15 13 15 14 15 15 Average Carried 11 | 1 6 9 12 12 11 11 13 14 13 14 Final Capacity 15 | 8 15 15 15 15 15 15 15 15 15 15 Final Carried 14 | 1 7 12 12 13 13 12 14 14 14 7 Class Distribution -------------------- 39% | Mutant 23% | Skirmisher 15% | Scavenger-Bomber 13% | Bomber 8% | Gunner Dominant Class ---------------- Mutant | -10/Materials Mutant | -10/Mines Mutant | -10/Exiles Mutant | -9/Mines Skirmisher | -8/Materials Skirmisher | -7/Factory Bomber | -7/Waste Bomber | -7/Factory Scavenger-Bomber | -7/Garrison Gunner | -7/Factory Resources | -11 -10 -10 -10 -9 -8 -7 -7 -7 -7 -7 ----------- Run | Yrd Mat Min Exi Min Mat Fac Was Fac Gar Fac Matter Collected 3227 | 213 353 87 . 170 711 60 448 . 395 790 Remotely . | . . . . . . . . . . . Salvage Created 3902 | . 459 22 . 58 864 . 1383 . 465 651 Parts 147 | . 37 4 . 2 53 . 7 . 11 33 Haulers Intercepted 3 | . 1 . . . 2 . . . . . Recyclers Shooed 4 | . 3 . . . 1 . . . . . Parts Field Recycled . | . . . . . . . . . . . Retrieved Matter . | . . . . . . . . . . . Parts Self-Destructed . | . . . . . . . . . . . Prevented . | . . . . . . . . . . . Kills | -11 -10 -10 -10 -9 -8 -7 -7 -7 -7 -7 ------- Run | Yrd Mat Min Exi Min Mat Fac Was Fac Gar Fac Combat Hostiles Destroyed 80 | . 17 3 . 2 26 . 6 . 7 19 Guns 9 | . 4 . . 2 . . . . 2 1 Cannons 35 | . 1 . . . 12 . . . 4 18 AOE 34 | . 12 3 . . 12 . 6 . 1 . Classes Destroyed 18 | . 7 . . . 3 . 1 . 3 4 Worker 5 | . 1 . . . 3 . . . . 1 Builder 4 | . . . . . 4 . . . . . Tunneler 1 | . 1 . . . . . . . . . Hauler 3 | . 1 . . . 2 . . . . . Recycler 1 | . . . . . 1 . . . . . Operator 1 | . 1 . . . . . . . . . Watcher 3 | . 1 . . . 1 . . . . 1 Swarmer 10 | . 3 3 . . 4 . . . . . Grunt 45 | . 14 . . 2 20 . . . 4 5 Brawler 5 | . . . . . . . . . 1 4 Duelist 1 | . . . . . . . . . . 1 Protector 1 | . . . . . . . . . . 1 Sentry 5 | . . . . . 2 . . . . 3 Hunter 4 | . . . . . . . . . 2 2 Programmer 3 | . . . . . . . . . . 3 Compactor 6 | . . . . . . . 6 . . . Surgeon 1 | . . . . . . . . . 1 . Thug 3 | . . . . . . . 1 . 1 1 Martyr 1 | . . . . . . . . . . 1 Best Kill Streak 10 | . 4 3 . 2 10 . 3 . 2 4 Combat Bots Only 6 | . 4 3 . 2 6 . 3 . 2 4 Max Kills in Single Turn 4 | . 3 2 . 1 4 . 2 . 2 2 Gunslinging . | . . . . . . . . . . . Exploded 3 | . 2 2 . . 3 . 1 . 1 . Melee . | . . . . . . . . . . . Uniques/NPCs Destroyed . | . . . . . . . . . . . Combat | -11 -10 -10 -10 -9 -8 -7 -7 -7 -7 -7 -------- Run | Yrd Mat Min Exi Min Mat Fac Was Fac Gar Fac Hostile Shots Fired 376 | . 55 2 . 1 91 . . . 32 195 Missed 101 | . 14 . . 1 28 . . . 9 49 Damage Taken 4907 | . 483 18 . . 1002 . 30 . 566 2808 Core 918 | . 119 9 . . 88 . . . 67 635 Absorbed by Shields . | . . . . . . . . . . . Reduced by Siege Mode 32 | . . . . . . . . . . 32 Regen/Repaired (Parts) 317 | . . . . . . . 156 . 161 . Core Remaining (%) 77 | 100 . . . 48 84 . . . . . Volleys Fired 179 | . 33 2 . 3 55 . 20 . 15 51 Largest 3 | . 2 2 . 2 2 . 3 . 3 2 Hottest 201 | . 123 53 . 59 96 . 159 . 201 150 Shots Fired 310 | . 58 4 . 4 76 . 34 . 42 92 Gun 74 | . 31 2 . 3 1 . . . 20 17 Cannon 152 | . . . . . 55 . 2 . 20 75 Launcher 78 | . 21 2 . 1 20 . 32 . 2 . Special 6 | . 6 . . . . . . . . . Kinetic 163 | . 24 2 . 3 41 . 1 . . 92 Thermal 22 | . 6 . . . . . . . 16 . Explosive 78 | . 21 2 . 1 20 . 32 . 2 . Electromagnetic 47 | . 7 . . . 15 . 1 . 24 . Robot Hit Streak 22 | . 5 1 . 3 8 . 16 . 13 22 Robot Miss Streak 4 | . 4 4 . 2 4 . 2 . 1 3 Penetration Max 1 | . . . . . . . . . . 1 Secondary Targets . | . . . . . . . . . . . Shots Hit Robots 200 | . 33 1 . 2 43 . 28 . 32 61 Core Hits 173 | . 41 3 . 4 59 . 16 . 19 31 Critical Kills . | . . . . . . . . . . . Critical Parts Destroyed 1 | . . . . . . . . . . 1 Critical Strikes 13 | . . . . . 5 . . . . 8 Destroy 1 | . . . . . . . . . . 1 Blast 11 | . . . . . 4 . . . . 7 Sever 1 | . . . . . 1 . . . . . Melee Attacks 24 | . . . . . 3 . . . 19 2 Impact . | . . . . . . . . . . . Slashing 24 | . . . . . 3 . . . 19 2 Piercing . | . . . . . . . . . . . Sneak Attacks . | . . . . . . . . . . . Combat Hostiles . | . . . . . . . . . . . Follow-up Attacks . | . . . . . . . . . . . Damage Inflicted 14848 | . 1371 157 . 93 3827 . 2892 . 1431 5077 Guns 829 | . 307 11 . 21 . . . . 199 291 Cannons 5611 | . . . . . 1621 . . . 335 3655 Explosions 8104 | . 1025 146 . 72 2178 . 2892 . 710 1081 Melee 263 | . . . . . 28 . . . 187 48 Ramming 17 | . 15 . . . . . . . . 2 Kinetic 5493 | . 241 11 . 21 1274 . . . . 3946 Thermal 1452 | . 24 . . . 114 . . . 233 1081 Explosive 6909 | . 1025 146 . 72 2064 . 2892 . 710 . Electromagnetic 714 | . 66 . . . 347 . . . 301 . Impact . | . . . . . . . . . . . Slashing 263 | . . . . . 28 . . . 187 48 Piercing . | . . . . . . . . . . . Highest Corruption 19 | . 2 2 2 2 1 . . . 2 19 Average Corruption 2 | . 1 2 2 2 1 . . . 2 2 Corruption Purged . | . . . . . . . . . . . Corruption Blocked . | . . . . . . . . . . . Effects 86 | . 9 5 6 14 3 . . . 27 22 Message Errors 27 | . . 2 2 5 1 . . . 9 8 Matter Fused 21 | . 3 1 1 2 2 . . . 8 4 Heat Flow Errors 11 | . 1 2 2 2 . . . . 2 2 Energy Discharges 13 | . 1 . 1 2 . . . . 4 5 Parts Rejected 1 | . . . . . . . . . . 1 Data Loss (minor) 4 | . 1 . . 1 . . . . 2 . Data Loss (major) 1 | . 1 . . . . . . . . . Misfires 2 | . . . . . . . . . 1 1 Alerts 3 | . 1 . . 2 . . . . . . Weapon Failures 3 | . 1 . . . . . . . 1 1 Overload Shots . | . . . . . . . . . . . Overflow Damage 684 | . . . . . 164 . . . 141 379 Projectiles 469 | . . . . . 111 . . . . 358 Explosions 173 | . . . . . 53 . . . 99 21 Melee 42 | . . . . . . . . . 42 . Knockbacks 26 | . . . . . 6 . . . . 20 Impact . | . . . . . . . . . . . Kinetic 22 | . . . . . 6 . . . . 16 Secondary 4 | . . . . . . . . . . 4 Self-Inflicted Damage 638 | . 36 . . . 131 . 31 . 216 224 Shots 14 | . 1 . . . 5 . 3 . 3 2 Rammed 2 | . 1 . . . . . . . . 1 Targets Rammed 2 | . 1 . . . . . . . . 1 Kicked . | . . . . . . . . . . . Crushed . | . . . . . . . . . . . Highest Temperature 531 | . 223 178 223 275 208 . 78 . 453 531 Average Temperature 114 | . 80 84 98 132 49 . 30 . 120 157 Received Heat Transfer 1590 | . 234 . . . 468 . . . 45 843 Effects 24 | . . . . 3 . . . . 4 17 Shutdowns 4 | . . . . . . . . . . 4 Energy Bleed 4 | . . . . . . . . . . 4 Interference 13 | . . . . 3 . . . . 3 7 Damage (minor) 1 | . . . . . . . . . 1 . Damage (major) 1 | . . . . . . . . . . 1 Damage (core) 1 | . . . . . . . . . . 1 Siege Activations 3 | . . . . . . . . . . 3 Total Turns 112 | . . . . . . . . . . 112 Longest Duration 68 | . . . . . . . . . . 68 Robots Corrupted 2 | . . . . . 2 . . . . . Combat Hostiles 2 | . . . . . 2 . . . . . Parts Fried 2 | . . . . . 1 . . . 1 . Impact Corruptions 1 | . . . . . . . . . . 1 Robots Melted . | . . . . . . . . . . . Combat Hostiles . | . . . . . . . . . . . Parts Melted 4 | . . . . 1 . . . . 2 1 Heat Transferred 1307 | . 50 . . . 150 . . . 407 700 Parts Sabotaged . | . . . . . . . . . . . Parts Stolen . | . . . . . . . . . . . Parts Stripped . | . . . . . . . . . . . Power Chain Reactions 1 | . . . . . 1 . . . . . Alert | -11 -10 -10 -10 -9 -8 -7 -7 -7 -7 -7 ------- Run | Yrd Mat Min Exi Min Mat Fac Was Fac Gar Fac Peak Influence 1741 | . 367 194 . 66 633 255 73 . 1741 1311 Initial 913 | . . 99 . . 25 255 19 . . 913 Average 561 | . 192 193 . 4 321 237 43 . 1064 1119 Maximum Alert Level 5 | . 1 . . . 2 1 . . 5 4 Low Security (%) 37 | 100 53 100 . 100 33 8 100 100 5 . Level 1 14 | . 46 . . . 17 91 . . 2 . Level 2 9 | . . . . . 48 . . . 5 . Level 3 14 | . . . . . . . . . 33 32 Level 4 21 | . . . . . . . . . 41 67 Level 5 2 | . . . . . . . . . 10 . High Security . | . . . . . . . . . . . Max Security . | . . . . . . . . . . . Squads Dispatched 23 | . 5 1 . . 7 . . . . 10 Investigation 11 | . 3 1 . . 4 . . . . 3 Extermination 3 | . . . . . . . . . . 3 Reinforcement 5 | . 2 . . . 3 . . . . . Assault 4 | . . . . . . . . . . 4 Garrison . | . . . . . . . . . . . Intercept . | . . . . . . . . . . . Searches Triggered . | . . . . . . . . . . . Construction Impeded 2 | . . . . . 2 . . . . . Haulers Reinforced . | . . . . . . . . . . . Active Scanning Responses . | . . . . . . . . . . . Cargo Convoy Interrupts . | . . . . . . . . . . . Stealth | -11 -10 -10 -10 -9 -8 -7 -7 -7 -7 -7 --------- Run | Yrd Mat Min Exi Min Mat Fac Was Fac Gar Fac Distress Signals 6 | . 1 . . . 4 . . . . 1 Communications Jammed . | . . . . . . . . . . . Distress Signals . | . . . . . . . . . . . Times Spotted 148 | . 27 1 . 4 43 . 6 . 24 43 Peak Tracking Total 9 | . 4 1 . 2 9 . 2 . 6 8 Tactical Retreats 9 | . . . . . 8 . . . 1 . Traps | -11 -10 -10 -10 -9 -8 -7 -7 -7 -7 -7 ------- Run | Yrd Mat Min Exi Min Mat Fac Was Fac Gar Fac Traps Triggered 5 | . 1 . . . 1 1 . . 1 1 Indirectly . | . . . . . . . . . . . Trap Hack Attempts . | . . . . . . . . . . . Triggered . | . . . . . . . . . . . Disarmed . | . . . . . . . . . . . Reprogrammed . | . . . . . . . . . . . Reused 4 | . . . . . 4 . . . . . Traps Reconfigurated 31 | . . . . . 14 2 . . 11 4 Traps Extracted . | . . . . . . . . . . . Installed . | . . . . . . . . . . . Triggered 4 | . . . . . 4 . . . . . Machines | -11 -10 -10 -10 -9 -8 -7 -7 -7 -7 -7 ---------- Run | Yrd Mat Min Exi Min Mat Fac Was Fac Gar Fac Machines Disabled 22 | . 1 . . . 3 . . . 9 9 Max in Single Turn 2 | . 1 . . . 1 . . . 1 2 Garrison Relay 4 | . . . . . . . . . 4 . Phase Generator 1 | . . . . . . . . . 1 . Machines Repaired . | . . . . . . . . . . . Machines Dismantled . | . . . . . . . . . . . Machines Sabotaged . | . . . . . . . . . . . Overloaded Fab Kills . | . . . . . . . . . . . Hacking | -11 -10 -10 -10 -9 -8 -7 -7 -7 -7 -7 --------- Run | Yrd Mat Min Exi Min Mat Fac Was Fac Gar Fac Machines Accessed 29 | . 9 1 1 1 9 1 . 1 2 4 Terminals 18 | . 6 . . 1 7 1 . . 2 1 Fabricators 1 | . . . . . . . . . . 1 Repair Stations 3 | . 1 . . . . . . . . 2 Recycling Units 3 | . 2 . . . 1 . . . . . Scanalyzers . | . . . . . . . . . . . Garrison Access 2 | . . . . . 1 . . 1 . . Total Hacks 64 | . 20 1 1 2 21 3 . 2 3 11 Successful 38 | . 12 1 1 2 13 1 . 1 2 5 Failed 26 | . 8 . . . 8 2 . 1 1 6 Catastrophic 5 | . 3 . . . 1 . . . . 1 Database Lockouts . | . . . . . . . . . . . Manual 1 | . . . 1 . . . . . . . Terminals 41 | . 14 . . 2 17 3 . . 3 2 Fabricators 3 | . . . . . . . . . . 3 Repair Stations 9 | . 3 . . . . . . . . 6 Recycling Units 4 | . 3 . . . 1 . . . . . Scanalyzers . | . . . . . . . . . . . Garrison Access 5 | . . . . . 3 . . 2 . . Terminal Hacks 29 | . 9 1 1 2 12 1 . . 2 1 Record 3 | . . . 1 1 . 1 . . . . Robot Analysis 2 | . 1 . . . 1 . . . . . Prototype ID Bank 1 | . . . . . 1 . . . . . Open Door 2 | . . 1 . . . . . . 1 . Open DSF 1 | . . . . . . . . . . 1 Branch Access Points 2 | . 1 . . . 1 . . . . . Emergency Access Points 1 | . . . . . . . . . 1 . Alert Level 3 | . 1 . . 1 1 . . . . . Unreport Threat 1 | . . . . . 1 . . . . . Locate Traps 4 | . 1 . . . 3 . . . . . Dispatch Records 1 | . 1 . . . . . . . . . Surveillance Status 1 | . 1 . . . . . . . . . Hauler Manifests 1 | . 1 . . . . . . . . . Registered Components 1 | . 1 . . . . . . . . . Zone Layout 5 | . 1 . . . 4 . . . . . Fabricator Hacks 2 | . . . . . . . . . . 2 Network Status 1 | . . . . . . . . . . 1 Build 1 | . . . . . . . . . . 1 Repair Station Hacks 3 | . 1 . . . . . . . . 2 Scan Component 3 | . 1 . . . . . . . . 2 Recycling Unit Hacks 3 | . 2 . . . 1 . . . . . Retrieve Components 3 | . 2 . . . 1 . . . . . Scanalyzer . | . . . . . . . . . . . Garrison Access Hacks 1 | . . . . . . . . 1 . . Unlock Access 1 | . . . . . . . . 1 . . Unauthorized Hacks . | . . . . . . . . . . . Terminals . | . . . . . . . . . . . Fabricators . | . . . . . . . . . . . Repair Stations . | . . . . . . . . . . . Recycling Units . | . . . . . . . . . . . Scanalyzers . | . . . . . . . . . . . Garrison Access . | . . . . . . . . . . . Data Cores Recovered . | . . . . . . . . . . . Used . | . . . . . . . . . . . Hacking Detections 18 | . 7 . . . 5 1 . 1 1 3 Full Trace Events 10 | . 4 . . . 3 . . . . 3 Feedback Events 3 | . 2 . . . 1 . . . . . Corruption 3 | . 2 . . . 1 . . . . . Feedback Blocked . | . . . . . . . . . . . Robot Schematics Acquired . | . . . . . . . . . . . Robots Built 3 | . . . . . . . . . . 3 Authchips . | . . . . . . . . . . . Time 67 | . . . . . . . . . . 67 Total Robot Build Rating 12 | . . . . . . . . . . 12 Part Schematics Acquired . | . . . . . . . . . . . Parts Built . | . . . . . . . . . . . Authchips . | . . . . . . . . . . . Time . | . . . . . . . . . . . Total Part Build Rating . | . . . . . . . . . . . Parts Repaired . | . . . . . . . . . . . Time . | . . . . . . . . . . . Parts Recycled . | . . . . . . . . . . . Recycled Matter . | . . . . . . . . . . . Retrieved Matter . | . . . . . . . . . . . Retrieved Components 13 | . 11 . . . 2 . . . . . Parts Scanalyzed . | . . . . . . . . . . . Part Schematics Acquired . | . . . . . . . . . . . Parts Damaged . | . . . . . . . . . . . Bothacking | -11 -10 -10 -10 -9 -8 -7 -7 -7 -7 -7 ------------ Run | Yrd Mat Min Exi Min Mat Fac Was Fac Gar Fac Used RIF Installer 1 | . . . . . . . . . 1 . Robots Hacked . | . . . . . . . . . . . Non-combat . | . . . . . . . . . . . Combat . | . . . . . . . . . . . Robot Hacks Applied . | . . . . . . . . . . . Relay Couplers Released 18 | . . . . . . . . . 18 . Machine Destruction 18 | . . . . . . . . . 18 . Attached 1 | . . . . . . . . . . 1 Fabnet Peak Effective % . | . . . . . . . . . . . Robots Rewired . | . . . . . . . . . . . Allies Hacked . | . . . . . . . . . . . Hacks Repelled . | . . . . . . . . . . . Allies | -11 -10 -10 -10 -9 -8 -7 -7 -7 -7 -7 -------- Run | Yrd Mat Min Exi Min Mat Fac Was Fac Gar Fac Total Allies 28 | . . . . 3 . . 20 . 2 3 Largest Group 19 | . . . . 3 1 . 19 19 19 6 Highest-Rated Group 465 | . . . . 40 8 . 465 465 465 145 Highest-Rated Ally 35 | . . . . 16 8 . 35 35 35 35 Total Orders 2 | . . . . 2 . . . . . . FOLLOW 1 | . . . . 1 . . . . . . AID 1 | . . . . 1 . . . . . . Ally Attacks 189 | . . . . 12 3 . 10 . 147 17 Total Damage 3718 | . . . . 117 23 . 147 . 2869 562 Kills 30 | . . . . 1 . . . . 24 5 Allies Corrupted 1 | . . . . . . . . . 1 . Allies Melted . | . . . . . . . . . . . Intel | -11 -10 -10 -10 -9 -8 -7 -7 -7 -7 -7 ------- Run | Yrd Mat Min Exi Min Mat Fac Was Fac Gar Fac Robot Analysis Total 2 | . 1 . . . 1 . . . . . Derelict Logs Recovered 2 | . . . . 2 . . . . . . Drone Launches . | . . . . . . . . . . . Drone Recoveries . | . . . . . . . . . . . Exploration | -11 -10 -10 -10 -9 -8 -7 -7 -7 -7 -7 ------------- Run | Yrd Mat Min Exi Min Mat Fac Was Fac Gar Fac Turns Passed 9963 | 47 1245 398 686 1045 1529 437 588 52 2518 1418 Spaces Moved 5156 | 43 664 212 418 555 685 239 324 29 1439 548 Core 119 | 16 101 . . . . . . . . 2 Treads 4970 | . 523 212 418 555 685 239 324 29 1439 546 Legs . | . . . . . . . . . . . Wheels 67 | 27 40 . . . . . . . . . Hover . | . . . . . . . . . . . Flight . | . . . . . . . . . . . Fastest Speed 50 | 50 90 160 152 152 152 156 155 160 160 160 Average Speed 162 | 75 164 182 161 152 155 156 159 160 160 192 Slowest Speed 800 | 90 250 240 240 152 156 156 160 160 160 800 Overloaded Moves . | . . . . . . . . . . . Propulsion Burnouts . | . . . . . . . . . . . Robots Hopped . | . . . . . . . . . . . Cave-ins Triggered . | . . . . . . . . . . . Exploration Rate (%) 54 | 3 93 56 80 96 68 7 84 1 99 13 Regions Visited 10 Branch Regions 3 Pre-discovered Areas 1 | . . . . 1 . . . . . . Known Exits Taken 2 | . 1 . . . . . . 1 . . Unknown Exits Taken 5 | 1 . 1 1 1 1 . . . . . Scrap Searched 1 | . . . . 1 . . . . . . Spaces Dug 2 | . . . . . 2 . . . . . Terrain Destroyed 551 | . 94 16 . 13 190 . 98 . 93 47 Melee 2 | . . . . . 2 . . . . . Projectile 48 | . 2 . . . 24 . 1 . . 21 AOE 501 | . 92 16 . 13 164 . 97 . 93 26 Terrain Rammed . | . . . . . . . . . . . Walls Destroyed . | . . . . . . . . . . . Machines Disabled . | . . . . . . . . . . . Actions | -11 -10 -10 -10 -9 -8 -7 -7 -7 -7 -7 --------- Run | Yrd Mat Min Exi Min Mat Fac Was Fac Gar Fac Total 6379 | 58 744 221 432 752 1047 306 361 35 1599 824 Wait 771 | . 17 . . 194 265 55 . 7 39 194 Move 5147 | 42 663 211 417 554 684 239 323 28 1438 548 Hop . | . . . . . . . . . . . Pick Up 85 | 7 14 5 4 1 15 3 6 . 25 5 Fast Attach 4 | 1 . . . . . . . . 3 . Attach 56 | 5 7 1 4 . 9 5 2 . 11 12 Detach 12 | . 1 . . . 2 3 1 . 3 2 Swap 37 | . 4 . 1 . 5 . 3 . 20 4 Drop 59 | 3 4 2 3 . 9 1 6 . 26 5 Fire 179 | . 33 2 . 3 55 . 20 . 15 51 Melee 24 | . . . . . 3 . . . 19 2 Ram . | . . . . . . . . . . . Kick . | . . . . . . . . . . . Crush 2 | . 1 . . . . . . . . 1 Escape Stasis . | . . . . . . . . . . . Rewire 3 | . . . 3 . . . . . . . Trap . | . . . . . . . . . . . Miscellaneous . | . . . . . . . . . . . Route ------- -11/Scrapyard -10/Materials (discovered 6 exits: [*Mat x3] / *Min x2 / [*Sub]) -10/Mines (discovered 3 exits: [*Mat x2] / *Exi) -10/Exiles -9/Mines -8/Materials (discovered 2 exits: *Fac x2) -7/Factory -7/Waste -7/Factory -7/Garrison (discovered 3 exits: *Fac x3) -7/Factory (discovered 1 exit: [*Fac]) History --------- Turn | Location | Event 25 | -11/Scrapyard | Discovered new exit (range 15) 48 | -11/Scrapyard | Entered Materials 303 | -10/Materials | Build established: Mutant 573 | -10/Materials | Identified exit to Mines 617 | -10/Materials | Discovered new exit (range 14) 918 | -10/Materials | Discovered new exit (range 16) 1026 | -10/Materials | Discovered new exit (range 13) 1252 | -10/Materials | Discovered new exit (range 12) 1293 | -10/Materials | Entered Mines 1296 | -10/Mines | Core integrity fell below 50% 1428 | -10/Mines | Discovered new exit (range 3) 1540 | -10/Mines | Met a Derelict shopkeep closing up shop 1638 | -10/Mines | Discovered new exit (range 12) 1682 | -10/Mines | Deemed a non-threat by the Exiles lab entrance 1682 | -10/Mines | Discovered new exit (range 5) 1691 | -10/Mines | Entered Exiles 1754 | -10/Exiles | Met 8R-AWN 1795 | -10/Exiles | Met EX-HEX 1851 | -10/Exiles | Met EX-BIN 1873 | -10/Exiles | Aligned with FarCom system 1874 | -10/Exiles | Given EX-Vault access code 1926 | -10/Exiles | Opened EX-Vault 1933 | -10/Exiles | Found Prototype Storage 1934 | -10/Exiles | Identified Superbattery 1940 | -10/Exiles | Found Prototype Device 1941 | -10/Exiles | Identified Skeleton Box 1944 | -10/Exiles | Found Prototype Device 1945 | -10/Exiles | Identified Trap Reconfigurator 1980 | -10/Exiles | Warned to stay clear of 0b10 Research branches 2023 | -10/Exiles | Met EX-DEC 2077 | -10/Exiles | Visited The Gauntlet 2357 | -10/Exiles | Discovered new exit (range 15) 2377 | -10/Exiles | Left Exiles lab with Trap Reconfigurator 2377 | -10/Exiles | Entered Mines 2412 | -9/Mines | Met a Derelict bent on vengeance 2917 | -9/Mines | Assisted by bots powering up and referring to "LRC-V3" 3404 | -9/Mines | Discovered new exit (range 7) 3422 | -9/Mines | Entered Materials 3422 | -8/Materials | Accompanied by 1 ally 3422 | -8/Materials | Evolved 4 slots: Propulsion x2, Utility x1, Weapon x1 3712 | -8/Materials | Build established: Skirmisher 4174 | -8/Materials | Discovered new exit (range 11) 4785 | -8/Materials | Discovered new exit (range 14) 4951 | -8/Materials | Entered Factory 4951 | -7/Factory | Evolved 2 slots: Utility x1, Weapon x1 5003 | -7/Factory | Build established: Mutant 5345 | -7/Factory | Build established: Skirmisher 5388 | -7/Factory | Sucked down chute 5388 | -7/Factory | Entered Waste 5389 | -7/Waste | Met a frightened Derelict 5400 | -7/Waste | Spotted C-40 Crusher 5401 | -7/Waste | Spotted C-40 Crusher 5415 | -7/Waste | Destroyed C-40 Crusher 5423 | -7/Waste | Destroyed C-40 Crusher 5434 | -7/Waste | Spotted C-40 Crusher 5451 | -7/Waste | Destroyed C-40 Crusher 5452 | -7/Waste | Spotted C-40 Crusher 5458 | -7/Waste | Destroyed C-40 Crusher 5458 | -7/Waste | Spotted C-40 Crusher 5475 | -7/Waste | Destroyed C-40 Crusher 5526 | -7/Waste | Spotted C-40 Crusher 5532 | -7/Waste | Destroyed C-40 Crusher 5632 | -7/Waste | Discovered new exit (range 14) 5777 | -7/Waste | Warlord forces began an assault 5953 | -7/Waste | Build established: Bomber 5976 | -7/Waste | Entered Factory 5976 | -7/Factory | Accompanied by 19 allies 6011 | -7/Factory | Identified exit to Garrison 6028 | -7/Factory | Entered Garrison 6028 | -7/Garrison | Accompanied by 19 allies 6074 | -7/Garrison | Triggered checkpoint 6128 | -7/Garrison | Triggered checkpoint 6171 | -7/Garrison | Garrison Relay disabled 6247 | -7/Garrison | Heavy support dispatched to Factory 6298 | -7/Garrison | Discovered new exit (range 12) 6352 | -7/Garrison | Lost 6 allies 6364 | -7/Garrison | Triggered checkpoint 6372 | -7/Garrison | Garrison Relay disabled 6470 | -7/Garrison | Triggered checkpoint 6582 | -7/Garrison | Triggered checkpoint 6633 | -7/Garrison | Rescued a captive Derelict 6634 | -7/Garrison | Rescued a captive Derelict 6666 | -7/Garrison | Heavy support dispatched to Factory 6689 | -7/Garrison | Lost 3 allies 6738 | -7/Garrison | Triggered checkpoint 6789 | -7/Garrison | Build established: Scavenger-Bomber 6849 | -7/Garrison | Discovered new exit (range 11) 6904 | -7/Garrison | Triggered checkpoint 6921 | -7/Garrison | Garrison Relay disabled 6945 | -7/Garrison | Installed Relay Interface Framework 7126 | -7/Garrison | Discovered new exit (range 10) 7370 | -7/Garrison | Garrison Relay disabled 7680 | -7/Garrison | Phase Generator disabled 8482 | -7/Garrison | Build established: Bomber 8546 | -7/Garrison | Entered Factory 8546 | -7/Factory | Accompanied by 3 allies 8724 | -7/Factory | Fabricated B-48 Gladiator (x3) 8946 | -7/Factory | First assault squad dispatched 9025 | -7/Factory | Discovered new exit (range 5) 9117 | -7/Factory | Lost 3 allies 9198 | -7/Factory | Build established: Gunner 9697 | -7/Factory | Build established: Skirmisher 9927 | -7/Factory | System corruption reached 10% 9929 | -7/Factory | Core integrity fell below 50% 9959 | -7/Factory | Core integrity fell below 20% 9964 | -7/Factory | Destroyed by G-50 Soldier with Heavy Laser Last Messages --------------- 09944_ M-28 Smith repairs Lgt. Nuclear Core. 09946_ Hvy. Mass Driver destroyed. 09947_ M-28 Smith repairs G-50 Soldier. 09948_ Slug penetrates G-50 Soldier. 09949_ U-05 Engineer builds a Wall. 09950_ Slug penetrates B-48 Gladiator. 09951_ Knocked back. 09952_ Slug penetrates B-48 Gladiator. 09953_ M-28 Smith repairs G-50 Soldier. 09953_ Remote Datajack destroyed. 09954_ Slug penetrates G-47 Trooper. 09955_ K%=E38FPD/2X< 09958_ Critical hit (Burn: +37). 09959_ M-28 Smith repairs I-36 Angel. 09959_ KE Penetrator destroyed. 09960_ U-05 Engineer builds a Wall. 09963_ M-28 Smith repairs G-47 Trooper. 09964_ Critical hit (Burn: +37). Map ----- +----------------------------------------------------+ | ?????????????????????????????????????????????????? | | ?????????????????????????????????????????????????? | | ?????????????????????????????????????????????????? | | ?????????????????????????????????????????????????? | | ?????????????????????????????????????????????????? | | ?????????????????????????????????????????????????? | | ?????????????????????????????????????????????????? | | ????????????????????????###??????????????????????? | | ???????????????????????? ????????????????????? | | ??????????? ?????????? ?????????????????? | | ??????????# ???????? #????????????????? | | ??????????# #??????# #????????????????? | | ??????????# " #??????# #????????????????? | | ??????????# % #??????# #?? ?????????????? | | ??????????# ######## u#? ?????????????? | | ??????????# # # ""?????????????? | | ??????????+ # # "??????????????? | | ??????????# + # ???????????????? | | ??????????# % # #????????????????? | | ??????????# # #????????????????? | | ??????????# # #????????????????? | | ??????????# # %i #????????????????? | | #?????????# % #gm%g #????????????????? | | ########### %=#g]g #????????????????? | | %+/b=% #????????????????? | | ##### ##### !%!# @ #????????????????? | | #???# #???# %==!##########????????????????? | | ????# #########/####+#+#####?????????????????????? | | ###?# # ## #?????????????????????? | | #?# # !/ ## #?????????????????????? | | #?# # ] ] ## #?????????????????????? | | ]#?# #? |?# #?????????????????????? | | #?# #??#+#??# """ #?????????????????????? | | ### #### #??# """ #?????????????????????? | | # ## #?## """ "" #?????????????????????? | | "## ## #??# """ #?????????????????????? | | #??# """ S" #?????????????????????? | | ## ####??# """ """ #?????????????????????? | | ## #?????# """ """ #?????????????????????? | | ####+######### ?? ??#?????????????????????? | | # ! ###??#######????????????????????????? | | %# #???????????????????????????????????? | | # """ """ #???????????????????????????????????? | | # """ """ #???????????????????????????????????? | | ?# """ """ #???????????????????????????????????? | | ?# "" "" #???????????????????????????????????? | | ?# "" "" #???????????????????????????????????? | | ## #???????????????????????????????????? | | ##########+#???????????????????????????????????? | | ?????????# #???????????????????????????????????? | +----------------------------------------------------+ Best States ------------- Heat Dissipation 53 Energy Generation 25 Energy Capacity 360 Matter Stores 300 Matter Capacity 300 Sight Range 16 Robot Scan Range 15 Terrain Scan Density 10 Jamming Range 16 Armor Coverage 160 Weapon Cycling 25 Evasion (%) 50 Targeting Accuracy 20 Core Analysis 6 Recoil Reduction 4 Relay Coupler Types 1 Relay Coupler Value 29 Trap Extractor Capacity 4 Item Schematics ----------------- None Robot Schematics ------------------ None Fabricated ------------ B-48 Gladiator | x3 | -7/Factory | Preloaded Alien Tech Used ----------------- None Achievements -------------- Collateral Damage My Command Is Your Wish Challenges ------------ None Game ------ Seed BombSensorOptics Manual? 0 Play Time 01:28:40 Cumulative 13.1 hours Start 2024.04.27 @ 23:35:26 End 2024.04.28 @ 01:12:30 Sessions 1 Manual Loads 0 Difficulty Rogue Special Mode None Game No. 15 Rogue 15 Adventurer 0 Explorer 0 Win Type - Total 0 Types 0/0/0/0/0/0/0/0/0 Lore% 16 Gallery% 22 Achievement% 17 Wizard Run 0 Options --------- Layout 1 ASCII 0 Keyboard 0 Movement Mouse Keybinds 0 Fullscreen 1 Font 32/SmallcapsGlow Map View 50x35 Zoom Use 0% Tactical HUD 1 Map Filters NONE Filters NONE Steam 1 RUN: 35790ec6-24ae-4dfd-b7b6-2cdc27e2658e